Cogmind - Beta 11.1 @@@ ROGUE MODE // 2022.06.25 @ 10:56:18 Player: Demise Result: Self-destructed Performance ------------- Evolutions (1) 500 Regions Visited (5) 1000 Robots Destroyed (24) 120 Value Destroyed (383) 383 Prototype IDs (0) 0 Alien Tech Used (0) 0 Bonus (-40) -40 TOTAL SCORE: 1963 Bonus ------- Follower Combat Kills 14 Friendly Fire -54 Cogmind --------- Core Integrity 260/400 Matter 300/300 Energy 159/160 System Corruption 0% Temperature Cool (0) Movement Core (50) Location -9/Exiles Parts ------- > --- POWER (1) -------- Light Nuclear Core > --- PROPULSION (2) --- (None) > --- UTILITY (4) ------ Weight Redist. System Seismic Detector > --- WEAPON (2) ------- Light Assault Rifle Light Assault Rifle > --- INVENTORY (5) ---- Light Angular Momentum Engine Small Storage Unit Seismic Detector Mini Grenade Launcher Mini Grenade Launcher Peak State ------------ > --- POWER ------------ Light Nuclear Core > --- PROPULSION ------- (None) > --- UTILITY ---------- Weight Redist. System Seismic Detector > --- WEAPON ----------- Light Assault Rifle Light Assault Rifle > --- INVENTORY -------- Light Ion Engine Light Angular Momentum Engine Small Storage Unit Seismic Detector Mini Grenade Launcher [Rating: 9] Favorites ----------- Power Light Ion Engine Engine Light Ion Engine Power Core Light Nuclear Core Propulsion None Utility Seismic Detector Device Seismic Detector Protection Light Armor Plating Weapon Light Assault Rifle Ballistic Gun Light Assault Rifle Launcher Mini Grenade Launcher Build | -11 -10 -10 -9 -9 -9 ------- Run | Scr Mat Min Mat Min Exi Slots Evolved 2 | . . . 2 . . Power . | . . . . . . Propulsion . | . . . . . . Utility 2 | . . . 2 . . Weapon . | . . . . . . Parts Attached 21 | 2 1 1 8 9 . Power 3 | . . . 1 2 . Engine 2 | . . . 1 1 . Core 1 | . . . . 1 . Reactor . | . . . . . . Propulsion . | . . . . . . Treads . | . . . . . . Leg . | . . . . . . Wheel . | . . . . . . Hover . | . . . . . . Flight . | . . . . . . Utility 4 | . 1 . 1 2 . Device 3 | . 1 . 1 1 . Storage . | . . . . . . Processor . | . . . . . . Hackware . | . . . . . . Protection 1 | . . . . 1 . Artifact . | . . . . . . Weapon 14 | 2 . 1 6 5 . Energy Gun . | . . . . . . Energy Cannon . | . . . . . . Ballistic Gun 10 | 2 . 1 4 3 . Ballistic Cannon . | . . . . . . Launcher 4 | . . . 2 2 . Special Weapon . | . . . . . . Impact Weapon . | . . . . . . Slashing Weapon . | . . . . . . Piercing Weapon . | . . . . . . Special Melee Weapon . | . . . . . . Unidentified Prototypes . | . . . . . . Parts Lost 3 | . . . 1 2 . Power 1 | . . . 1 . . Propulsion . | . . . . . . Utility 1 | . . . . 1 . Weapon 1 | . . . . 1 . Highest Loss Streak 2 | . . . 1 2 . To Critical Strikes . | . . . . . . Average Slot Usage (%) 45 | . 28 28 36 59 55 Engine 4 | . . . 2 8 . Core 1 | . . . . 2 11 Device 19 | . 14 14 19 22 22 Protection 2 | . . . . 4 . Ballistic Gun 16 | . 14 14 7 21 22 Launcher 1 | . . . 6 . . Naked Turns . | . . . . . . Heaviest Build 10 | 3 3 5 9 10 8 Greatest Support 9 | 3 3 3 9 9 9 Greatest Overweight (x) 1 | . . 1 . 1 . Average Overweight (x) . | . . . . . . Largest Inventory Capacity 5 | 5 5 5 5 5 5 Average Capacity 5 | 5 5 5 5 5 5 Most Carried 5 | 3 3 5 5 5 5 Average Carried 4 | 1 2 4 4 4 5 Final Capacity 5 | 5 5 5 5 5 5 Final Carried 5 | 3 3 5 5 5 5 Class Distribution -------------------- 100% | Mutant Dominant Class ---------------- Mutant | -10/Mines Mutant | -9/Materials Mutant | -9/Mines Mutant | -9/Exiles Resources | -11 -10 -10 -9 -9 -9 ----------- Run | Scr Mat Min Mat Min Exi Matter Collected 700 | 252 . 105 15 328 . Remotely . | . . . . . . Salvage Created 646 | 113 . 131 88 314 . Parts 52 | 5 . 11 11 25 . Haulers Intercepted . | . . . . . . Recyclers Shooed . | . . . . . . Parts Field Recycled . | . . . . . . Retrieved Matter . | . . . . . . Parts Self-Destructed . | . . . . . . Prevented . | . . . . . . Kills | -11 -10 -10 -9 -9 -9 ------- Run | Scr Mat Min Mat Min Exi Combat Hostiles Destroyed 14 | . . 6 2 6 . Guns 11 | . . 6 . 5 . AOE 3 | . . . 2 1 . Classes Destroyed 9 | 2 . 3 2 2 . Worker 2 | . . . . 2 . Builder 3 | . . 1 1 1 . Tunneler 3 | 1 . . 1 1 . Recycler 2 | 1 . . . 1 . Operator 1 | . . . 1 . . Swarmer 6 | . . 6 . . . Grunt 6 | . . . 2 4 . Zionite 1 | . . 1 . . . Assembled 2 | . . . . 2 . Best Kill Streak 3 | 1 . 2 2 3 . Combat Bots Only 2 | . . 2 2 1 . Max Kills in Single Turn 2 | 1 . 1 2 1 . Gunslinging . | . . . . . . Exploded 1 | . . . 1 1 . Melee . | . . . . . . Uniques/NPCs Destroyed . | . . . . . . Combat | -11 -10 -10 -9 -9 -9 -------- Run | Scr Mat Min Mat Min Exi Damage Taken 490 | . 15 114 141 220 . Core 188 | . 12 36 81 59 . Absorbed by Shields . | . . . . . . Regen/Repaired (Parts) 23 | . . . 23 . . Core Remaining (%) 90 | 100 . 80 . . . Volleys Fired 77 | 8 . 26 5 38 . Largest 2 | 2 . 2 1 2 . Hottest 40 | 40 . 40 30 40 . Shots Fired 122 | 16 . 29 5 72 . Gun 115 | 16 . 29 1 69 . Cannon . | . . . . . . Launcher 7 | . . . 4 3 . Special . | . . . . . . Kinetic 115 | 16 . 29 1 69 . Thermal . | . . . . . . Explosive 7 | . . . 4 3 . Electromagnetic . | . . . . . . Robot Hit Streak 7 | 5 . 5 1 7 . Robot Miss Streak 5 | 2 . 2 2 5 . Penetration Max . | . . . . . . Secondary Targets . | . . . . . . Shots Hit Robots 66 | 10 . 17 1 38 . Core Hits 38 | 4 . 8 5 21 . Critical Kills . | . . . . . . Critical Parts Destroyed . | . . . . . . Critical Strikes . | . . . . . . Melee Attacks . | . . . . . . Impact . | . . . . . . Slashing . | . . . . . . Piercing . | . . . . . . Sneak Attacks . | . . . . . . Combat Hostiles . | . . . . . . Follow-up Attacks . | . . . . . . Damage Inflicted 1046 | 106 7 209 286 438 . Guns 699 | 106 . 209 . 384 . Cannons . | . . . . . . Explosions 340 | . . . 286 54 . Melee . | . . . . . . Ramming 7 | . 7 . . . . Kinetic 699 | 106 . 209 . 384 . Thermal . | . . . . . . Explosive 340 | . . . 286 54 . Electromagnetic . | . . . . . . Impact . | . . . . . . Slashing . | . . . . . . Piercing . | . . . . . . Highest Corruption . | . . . . . . Average Corruption . | . . . . . . Corruption Purged . | . . . . . . Corruption Blocked . | . . . . . . Overload Shots . | . . . . . . Overflow Damage . | . . . . . . Projectiles . | . . . . . . Explosions . | . . . . . . Melee . | . . . . . . Knockbacks . | . . . . . . Impact . | . . . . . . Kinetic . | . . . . . . Secondary . | . . . . . . Self-Inflicted Damage 3 | . 3 . . . . Shots . | . . . . . . Rammed 1 | . 1 . . . . Targets Rammed 1 | . 1 . . . . Kicked . | . . . . . . Crushed . | . . . . . . Highest Temperature 17 | . . . . 17 . Average Temperature 8 | . . . . 8 . Received Heat Transfer 192 | . 6 . 45 141 . Siege Activations . | . . . . . . Robots Corrupted . | . . . . . . Combat Hostiles . | . . . . . . Parts Fried . | . . . . . . Impact Corruptions . | . . . . . . Robots Melted . | . . . . . . Combat Hostiles . | . . . . . . Parts Melted . | . . . . . . Heat Transferred . | . . . . . . Parts Sabotaged . | . . . . . . Parts Stolen . | . . . . . . Parts Stripped . | . . . . . . Power Chain Reactions . | . . . . . . Missiles Intercepted . | . . . . . . Alert | -11 -10 -10 -9 -9 -9 ------- Run | Scr Mat Min Mat Min Exi Peak Influence 419 | 10 21 261 419 195 . Initial 101 | . 6 7 101 99 . Average 141 | 4 11 197 192 98 . Maximum Alert Level 2 | . . 1 2 . . Low Security (%) 76 | 100 100 28 71 100 . Level 1 22 | . . 71 24 . . Level 2 1 | . . . 4 . . Level 3 . | . . . . . . Level 4 . | . . . . . . Level 5 . | . . . . . . High Security . | . . . . . . Max Security . | . . . . . . Squads Dispatched 4 | . 1 . 3 . . Investigation 2 | . . . 2 . . Extermination . | . . . . . . Reinforcement 2 | . 1 . 1 . . Assault . | . . . . . . Garrison . | . . . . . . Intercept . | . . . . . . Searches Triggered . | . . . . . . Construction Impeded . | . . . . . . Haulers Reinforced . | . . . . . . Active Scanning Responses . | . . . . . . Cargo Convoy Interrupts . | . . . . . . Stealth | -11 -10 -10 -9 -9 -9 --------- Run | Scr Mat Min Mat Min Exi Distress Signals 3 | . 1 . 2 . . Communications Jammed . | . . . . . . Distress Signals . | . . . . . . Times Spotted 34 | . 3 9 15 7 . Peak Tracking Total 9 | . 5 3 9 3 . Tactical Retreats 4 | . . . 2 2 . Traps | -11 -10 -10 -9 -9 -9 ------- Run | Scr Mat Min Mat Min Exi Traps Triggered . | . . . . . . Indirectly . | . . . . . . Trap Hack Attempts . | . . . . . . Triggered . | . . . . . . Disarmed . | . . . . . . Reprogrammed . | . . . . . . Reused . | . . . . . . Traps Extracted . | . . . . . . Installed . | . . . . . . Triggered . | . . . . . . Machines | -11 -10 -10 -9 -9 -9 ---------- Run | Scr Mat Min Mat Min Exi Machines Disabled 4 | . . 3 1 . . Max in Single Turn 1 | . . 1 1 . . Machines Sabotaged . | . . . . . . Garrisons Compromised . | . . . . . . Overloaded Fab Kills . | . . . . . . Hacking | -11 -10 -10 -9 -9 -9 --------- Run | Scr Mat Min Mat Min Exi Machines Accessed 6 | . . . 6 . . Terminals 5 | . . . 5 . . Fabricators . | . . . . . . Repair Stations 1 | . . . 1 . . Recycling Units . | . . . . . . Scanalyzers . | . . . . . . Garrison Access . | . . . . . . Total Hacks 18 | . . . 18 . . Successful 9 | . . . 9 . . Failed 9 | . . . 9 . . Catastrophic . | . . . . . . Database Lockouts . | . . . . . . Manual 15 | . . . 15 . . Terminals 15 | . . . 15 . . Fabricators . | . . . . . . Repair Stations 3 | . . . 3 . . Recycling Units . | . . . . . . Scanalyzers . | . . . . . . Garrison Access . | . . . . . . Terminal Hacks 1 | . . . 1 . . Robot Analysis 1 | . . . 1 . . Fabricator Hacks . | . . . . . . Repair Station Hacks 2 | . . . 2 . . Scan Component 1 | . . . 1 . . Repair 1 | . . . 1 . . Recycling Unit Hacks . | . . . . . . Scanalyzer . | . . . . . . Garrison Access Hacks . | . . . . . . Unauthorized Hacks 6 | . . . 6 . . Terminals 6 | . . . 6 . . Track 2 | . . . 2 . . Assimilate 1 | . . . 1 . . Botnet 2 | . . . 2 . . Operators 1 | . . . 1 . . Fabricators . | . . . . . . Repair Stations . | . . . . . . Recycling Units . | . . . . . . Scanalyzers . | . . . . . . Garrison Access . | . . . . . . Data Cores Recovered . | . . . . . . Used . | . . . . . . Hacking Detections 5 | . . . 5 . . Full Trace Events 2 | . . . 2 . . Feedback Events . | . . . . . . Feedback Blocked . | . . . . . . Robot Schematics Acquired . | . . . . . . Robots Built . | . . . . . . Authchips . | . . . . . . Time . | . . . . . . Total Robot Build Rating . | . . . . . . Part Schematics Acquired . | . . . . . . Parts Built . | . . . . . . Authchips . | . . . . . . Time . | . . . . . . Total Part Build Rating . | . . . . . . Parts Repaired 1 | . . . 1 . . Time 50 | . . . 50 . . Parts Recycled . | . . . . . . Recycled Matter . | . . . . . . Retrieved Matter . | . . . . . . Retrieved Components . | . . . . . . Parts Scanalyzed . | . . . . . . Part Schematics Acquired . | . . . . . . Parts Damaged . | . . . . . . Bothacking | -11 -10 -10 -9 -9 -9 ------------ Run | Scr Mat Min Mat Min Exi Used RIF Installer . | . . . . . . Robots Hacked . | . . . . . . Non-combat . | . . . . . . Combat . | . . . . . . Robot Hacks Applied . | . . . . . . Relay Couplers Released . | . . . . . . Fabnet Peak Effective % . | . . . . . . Robots Rewired . | . . . . . . Allies Hacked . | . . . . . . Hacks Repelled . | . . . . . . Allies | -11 -10 -10 -9 -9 -9 -------- Run | Scr Mat Min Mat Min Exi Total Allies 5 | . . 2 . 3 . Largest Group 3 | . . 2 . 3 3 Highest-Rated Group 45 | . . 45 . 40 40 Highest-Rated Ally 31 | . . 31 . 16 16 Total Orders . | . . . . . . Ally Attacks 11 | . . 11 . . . Total Damage 154 | . . 154 . . . Kills 2 | . . 2 . . . Allies Corrupted . | . . . . . . Allies Melted . | . . . . . . Intel | -11 -10 -10 -9 -9 -9 ------- Run | Scr Mat Min Mat Min Exi Robot Analysis Total 1 | . . . 1 . . Derelict Logs Recovered 3 | . . 2 . 1 . Drone Launches . | . . . . . . Drone Recoveries . | . . . . . . Exploration | -11 -10 -10 -9 -9 -9 ------------- Run | Scr Mat Min Mat Min Exi Turns Passed 1666 | 52 18 382 417 768 29 Spaces Moved 1976 | 48 31 615 524 701 57 Core 1976 | 48 31 615 524 701 57 Treads . | . . . . . . Legs . | . . . . . . Wheels . | . . . . . . Hover . | . . . . . . Flight . | . . . . . . Fastest Speed 50 | 50 50 50 50 50 50 Average Speed 51 | 50 50 50 50 54 50 Slowest Speed 100 | 50 50 100 50 100 50 Overloaded Moves . | . . . . . . Propulsion Burnouts . | . . . . . . Robots Hopped . | . . . . . . Cave-ins Triggered . | . . . . . . Exploration Rate (%) 45 | 3 8 98 42 96 24 Regions Visited 5 Branch Regions 3 Pre-discovered Areas 3 | . . 2 . 1 . Known Exits Taken . | . . . . . . Unknown Exits Taken 5 | 1 1 1 1 1 . Scrap Searched 2 | . . 1 . 1 . Spaces Dug . | . . . . . . Terrain Destroyed 42 | . . . 30 12 . Melee . | . . . . . . Projectile . | . . . . . . AOE 42 | . . . 30 12 . Terrain Rammed . | . . . . . . Walls Destroyed . | . . . . . . Machines Disabled . | . . . . . . Actions | -11 -10 -10 -9 -9 -9 --------- Run | Scr Mat Min Mat Min Exi Total 2503 | 60 33 658 671 1024 57 Wait 412 | . . 9 130 273 . Move 1972 | 47 31 614 523 700 57 Hop . | . . . . . . Pick Up 12 | 3 . 5 3 1 . Fast Attach 7 | 2 . . 2 3 . Attach 7 | . 1 1 3 2 . Detach 4 | . 1 . 1 2 . Swap 7 | . . . 3 4 . Drop 5 | . . 3 1 1 . Fire 77 | 8 . 26 5 38 . Melee . | . . . . . . Ram . | . . . . . . Kick . | . . . . . . Crush . | . . . . . . Escape Stasis . | . . . . . . Rewire . | . . . . . . Trap . | . . . . . . Miscellaneous . | . . . . . . Route ------- -11/Scrapyard -10/Materials -10/Mines (discovered 2 exits: *Mat x2) -9/Materials (discovered 2 exits: [*Mat] / [*Min]) -9/Mines (discovered 4 exits: [*Mat x2] / [*Exi] / [*Zio]) -9/Exiles History --------- Turn | Location | Event 12 | -11/Scrapyard | Discovered new exit (range 14) 53 | -11/Scrapyard | Entered Materials 55 | -10/Materials | Discovered new exit (range 8) 71 | -10/Materials | Entered Mines 140 | -10/Mines | Discovered new exit (range 6) 315 | -10/Mines | Build established: Mutant 354 | -10/Mines | Discovered new exit (range 14) 453 | -10/Mines | Entered Materials 453 | -9/Materials | Evolved 2 slots: Utility x2 647 | -9/Materials | Repaired Lgt. Angular Momentum Engine? 835 | -9/Materials | Discovered new exit (range 10) 865 | -9/Materials | Discovered new exit (range 9) 870 | -9/Materials | Entered Mines 879 | -9/Mines | Met a Derelict bent on vengeance 891 | -9/Mines | Learned 2 Materials zone layouts 911 | -9/Mines | Discovered new exit (range 10) 935 | -9/Mines | Found a hidden stash of uninstalled traps 977 | -9/Mines | Discovered new exit (range 14) 991 | -9/Mines | Excavation squad dispatched 991 | -9/Mines | A large section of the Mines collapsed 1417 | -9/Mines | Deemed a non-threat by the Exiles lab entrance 1417 | -9/Mines | Discovered new exit (range 5) 1524 | -9/Mines | A Derelict revealed a hidden shortcut to a safe place 1540 | -9/Mines | Assisted by bots powering up and referring to "LRC-V3" 1546 | -9/Mines | Learned location of Storage (-8) 1638 | -9/Mines | Entered Exiles 1638 | -9/Exiles | Found Exiles lab destroyed 1638 | -9/Exiles | Accompanied by 3 allies 1667 | -9/Exiles | Self-destructed Last Messages --------------- 01540_ Trooper 2a: "Hello LRC-V3. What is your command?" 01540_ Mercenary 2a: "Hello LRC-V3. What is your command?" 01540_ Trooper 2b: "Hello LRC-V3. What is your command?" 01546_ A derelict emerges from the shadows: "Are any of them following you? I'm here trying to lose some heat after our second raid on Storage failed. Whatever you do stay away from that place, they've tightened security following our previous successful raids." World map updated: -8/Storage. 01548_ FV-ASJ(g): "We scattered so the Unaware couldn't effectively use their advantage in numbers, and I suggest you do the same." 01548_ FV-ASJ(g) slips back into the shadows. 01555_ Searching scrap... 01555_ Found Mni. Grenade Launcher. 01555_ Found Particle Cannon. 01555_ Found 17 Matter. 01556_ Acquired Mni. Grenade Launcher. 01580_ K-01 Serf destroyed. 01581_ Acquired 2 matter. LOCATION=UNKNOWN GOAL=ESCAPE Map ----- +----------------------------------------------------+ | ?????????????????????????????????????????????????? | | ?????????????????????????????????????????????????? | | ?????????????????????????????????????????????????? | | ?????????????????????????????????????????????????? | | ?????????????????????????????????????????????????? | | ?????????????????????????????????????????????????? | | ?????????????????????????????????????????????????? | | ?????????????????????????????????????????????????? | | ?????????????????????????????????????????????????? | | ?????????????????????????????????????????????????? | | ?????????????????????????????????????????????????? | | ?????????????????????????#?####??????????????????? | | ?????????????????? ###""""" """????????????????? | | ???????????????? " " " """#??????????????? | | ?????????????? " " #?????????????? | | ?????????????? """#?????????????? | | ?????????????? h " "#???????????### | | ??????????????? " "##?????????## | | ??????????????? ""###???????#" | | ??????????????? """#??????## | | ????????????????? "#?###### | | ?????????????????#""" ### # | | ??????????????????#" ## | | ??????????????????#""" # | | ?????????????????##"" ## | | ?????????????????#"" @ ### | | ??????????????#"" "#?# | | ??????????????"" g ""##?# | | ???????????? #####??? | | ??????????? ###??????? | | ???????????? g " a ##????????? | | ???????????? " " ""#?????????? | | ????????????# ##"" " "" "##?????????? | | ????????????? ??#####""" """# ""##??????????? | | ????????????????????###""""# # ###???????????? | | ??????????????????????####### ##?????????????? | | ????????????????????????????### ##??????????????? | | ??????????????????????????????####???????????????? | | ?????????????????????????????????????????????????? | | ?????????????????????????????????????????????????? | | ?????????????????????????????????????????????????? | | ?????????????????????????????????????????????????? | | ?????????????????????????????????????????????????? | | ?????????????????????????????????????????????????? | | ?????????????????????????????????????????????????? | | ?????????????????????????????????????????????????? | | ?????????????????????????????????????????????????? | | ?????????????????????????????????????????????????? | | ?????????????????????????????????????????????????? | | ?????????????????????????????????????????????????? | +----------------------------------------------------+ Best States ------------- Heat Dissipation 28 Energy Generation 14 Energy Capacity 250 Matter Stores 300 Matter Capacity 300 Sight Range 16 Terrain Scan Density 10 Additional Mass Support 6 Armor Coverage 150 Evasion (%) 50 Item Schematics ----------------- None Robot Schematics ------------------ None Fabricated ------------ Nothing Alien Tech Used ----------------- None Achievements -------------- None Challenges ------------ None Game ------ Seed WarpProtonDesublimator Manual? 0 Play Time 00:16:32 Cumulative 646.8 hours Start 2022.06.25 @ 10:39:57 End 2022.06.25 @ 10:56:18 Sessions 1 Manual Loads 0 Difficulty Rogue Special Mode None Game No. 529 Rogue 529 Adventurer 0 Explorer 0 Win Type - Total 8 Types 7/0/0/1/0/0/0/0/0 Lore% 75 Gallery% 86 Achievement% 69 Wizard Run 0 Options --------- ASCII 0 Keyboard 1 Movement Numpad Keybinds 0 Fullscreen 1 Font 12/Terminus Map View 83x54 Tactical HUD 1 Map Filters NONE Filters NONE Steam 1 RUN: 5eb32beb-cb04-4b9d-9529-7ed290fb767e